bitfinex/quotes_SOLUSD_20250102
["timestamp","ask_amount","ask_price","bid_price","bid_amount"]
[1735829490468,32.32539181,208.69,208.62,32.32539181]
[1735829490647,32.32539181,208.7,208.62,32.32539181]
[1735829490974,32.32539181,208.7,208.63,32.32539181]
[1735829491685,32.32539181,208.74,208.67,32.32539181]
[1735829491991,32.32539181,208.78,208.7,32.32539181]
[1735829492154,32.32539181,208.79,208.72,32.32539181]
[1735829492350,32.32539181,208.81,208.74,32.32539181]
[1735829492568,32.32539181,208.82,208.74,32.32539181]
[1735829493085,32.32539181,208.78,208.71,32.32539181]
[1735829493393,0.12549,208.79,208.72,32.32539181]
[1735829493574,32.32539181,208.8,208.72,32.32539181]
[1735829493753,32.32539181,208.82,208.75,32.32539181]
[1735829494079,32.32539181,208.81,208.74,32.32539181]
[1735829494582,32.32539181,208.8,208.73,32.32539181]
[1735829494883,32.32539181,208.8,208.72,32.32539181]
[1735829495060,0.12549,208.79,208.73,32.32539181]
[1735829495881,32.32539181,208.82,208.75,32.32539181]
[1735829496084,6.0289,208.87,208.77,32.32539181]
[1735829496085,32.32539181,208.85,208.77,32.32539181]
[1735829496265,32.32539181,208.85,208.78,32.32539181]
[1735829496583,32.32539181,208.89,208.81,32.32539181]
[1735829496790,6.2533,208.94,208.84,32.32539181]
[1735829496791,32.32539181,208.91,208.84,32.32539181]
[1735829497082,32.32539181,208.93,208.86,32.32539181]
[1735829497272,32.32539181,208.96,208.88,32.32539181]
[1735829497474,32.32539181,208.97,208.89,32.32539181]
[1735829497779,32.32539181,208.95,208.88,32.32539181]
[1735829497960,32.45088181,208.94,208.89,20.0]
[1735829498157,32.32539181,208.95,208.87,32.32539181]
[1735829499173,0.12549,208.94,208.87,32.32539181]
[1735829499694,32.32539181,208.89,208.82,32.32539181]
[1735829499866,0.12549,208.88,208.82,32.32539181]
[1735829500484,0.25098,208.87,208.81,32.32539181]
[1735829500681,32.57637181,208.87,208.8,32.32539181]
[1735829500884,32.57637181,208.87,208.79,32.32539181]
[1735829501067,32.32539181,208.86,208.78,33.87279181]
[1735829501482,32.32539181,208.84,208.78,1.5474]
[1735829501690,0.12549,208.83,208.78,1.5474]
[1735829501892,32.45088181,208.83,208.78,1.5474]
[1735829502564,32.32539181,208.81,208.74,32.32539181]
[1735829502792,32.32539181,208.8,208.73,32.32539181]
[1735829502967,6.3482,208.87,208.71,1.5238]
[1735829502968,32.32539181,208.79,208.72,32.32539181]
[1735829503158,32.32539181,208.79,208.71,33.84919181]
[1735829503365,0.25098,208.76,208.71,1.5238]
[1735829503670,0.25098,208.76,208.64,0.71856418]
[1735829503671,32.32539181,208.75,208.68,32.32539181]
[1735829503876,32.32539181,208.78,208.7,32.32539181]
[1735829504193,32.32539181,208.79,208.72,32.32539181]
[1735829504399,19.86598719,208.8,208.73,19.86598719]
[1735829504889,18.3175,208.87,208.66,0.7185826]
[1735829504890,19.86598719,208.82,208.75,19.86598719]
[1735829505061,19.86598719,208.86,208.78,19.86598719]
[1735829505263,19.86598719,208.88,208.8,19.86598719]
[1735829505578,6.2215,208.93,208.71,24.4953291]
[1735829505579,0.12549,208.85,208.79,19.86598719]
[1735829505771,19.99147719,208.85,208.78,19.86598719]
[1735829505973,0.12549,208.85,208.8,19.86598719]
[1735829506183,20.11696719,208.86,208.79,19.86598719]
[1735829506382,0.25098,208.84,208.77,19.86598719]
[1735829506604,0.25098,208.84,208.79,19.86598719]
[1735829506767,19.86598719,208.85,208.78,19.86598719]
[1735829506975,19.86598719,208.85,208.77,19.86598719]
[1735829507196,19.86598719,208.83,208.76,19.86598719]
[1735829507373,0.12549,208.83,208.77,19.86598719]
[1735829507692,0.12549,208.89,208.79,19.86598719]
[1735829507904,19.86598719,208.85,208.78,19.86598719]
[1735829508064,0.12549,208.85,208.79,19.86598719]
[1735829508398,0.12549,208.85,208.75,0.71829444]
[1735829508579,0.25098,208.86,208.8,19.86598719]
[1735829508893,19.86598719,208.84,208.77,19.86598719]
[1735829509286,0.12549,208.85,208.78,19.86598719]
[1735829509468,0.12549,208.85,208.79,19.86598719]
[1735829510480,19.99147719,208.84,208.77,39.86598719]
[1735829510685,19.86598719,208.83,208.77,20.0]
[1735829510883,19.86598719,208.8,208.73,19.86598719]
[1735829511098,19.86598719,208.83,208.76,19.86598719]
[1735829511269,19.86598719,208.82,208.75,19.86598719]
[1735829511470,19.99147719,208.81,208.73,19.86598719]
[1735829511869,19.99147719,208.81,208.7,20.0]
[1735829511870,19.99147719,208.81,208.74,19.86598719]
[1735829512182,19.99147719,208.81,208.74,39.86598719]
[1735829512995,19.86598719,208.8,208.74,20.0]
[1735829513293,19.86598719,208.79,208.72,19.86598719]
[1735829513463,0.12549,208.78,208.72,19.86598719]
[1735829514592,0.25098,208.79,208.73,19.86598719]
[1735829514893,19.86598719,208.81,208.74,19.86598719]
[1735829515071,0.12549,208.8,208.73,19.86598719]
[1735829515273,19.86598719,208.79,208.72,39.86598719]
[1735829515799,19.86598719,208.9,208.78,19.86598719]
[1735829515800,19.86598719,208.85,208.78,19.86598719]
[1735829516099,0.12549,208.84,208.78,19.86598719]
[1735829516302,0.12549,208.82,208.76,19.86598719]
[1735829516507,19.86598719,208.81,208.74,19.86598719]
[1735829516670,19.99147719,208.8,208.73,39.86598719]
[1735829516869,0.12549,208.79,208.73,39.86598719]
[1735829517090,0.12549,208.79,208.7,19.86598719]
[1735829517091,19.86598719,208.77,208.7,19.86598719]
[1735829517483,0.12549,208.76,208.7,19.86598719]
[1735829518078,11.9708,208.84,208.71,19.86598719]
[1735829518079,19.86598719,208.78,208.71,19.86598719]
[1735829518277,25.95198719,208.81,208.73,19.86598719]
[1735829518493,19.86598719,208.8,208.73,19.86598719]
[1735829518688,19.86598719,208.82,208.75,19.86598719]
[1735829519000,6.4024,208.86,208.71,23.776884]
[1735829519176,0.25098,208.79,208.73,19.86598719]
[1735829519380,19.86598719,208.82,208.75,19.86598719]
[1735829519712,20.11696719,208.82,208.75,19.86598719]
[1735829520273,0.12549,208.82,208.75,19.86598719]
[1735829520472,0.12549,208.82,208.76,19.86598719]
[1735829520906,0.25098,208.82,208.75,19.86598719]
[1735829521118,19.86598719,208.83,208.75,19.86598719]
[1735829521326,19.86598719,208.83,208.76,19.86598719]
[1735829521503,19.99147719,208.81,208.74,39.86598719]
[1735829522002,0.25098,208.82,208.75,19.86598719]
[1735829522211,0.12549,208.82,208.76,19.86598719]
[1735829522419,0.12549,208.82,208.75,19.86598719]
[1735829522608,20.11696719,208.82,208.75,19.86598719]
[1735829523120,0.12549,208.82,208.77,19.86598719]
[1735829523314,6.4024,208.86,208.79,19.86598719]
[1735829523494,19.86598719,208.88,208.8,19.86598719]
[1735829523692,19.99147719,208.86,208.79,19.86598719]
[1735829523919,19.86598719,208.85,208.78,19.86598719]
[1735829524216,0.12549,208.83,208.77,19.86598719]
[1735829524426,19.99147719,208.83,208.75,19.86598719]
[1735829524603,0.12549,208.81,208.75,19.86598719]
[1735829524806,19.86598719,208.79,208.71,19.86598719]
[1735829525003,19.99147719,208.78,208.7,19.86598719]
[1735829525501,0.12549,208.78,208.73,19.86598719]
[1735829525703,0.12549,208.78,208.66,0.71860053]
[1735829525704,19.86598719,208.82,208.74,19.86598719]
[1735829525903,19.99147719,208.78,208.71,19.86598719]
[1735829526105,19.99147719,208.78,208.7,19.86598719]
[1735829526421,0.12549,208.76,208.69,19.86598719]
[1735829526923,0.12549,208.74,208.68,19.86598719]
[1735829527114,0.12549,208.72,208.65,19.86598719]
[1735829527293,0.25098,208.7,208.63,19.86598719]
[1735829527623,0.25098,208.7,208.58,0.71877864]
[1735829527624,19.86598719,208.68,208.58,1.6237]
[1735829527802,19.86598719,208.68,208.61,19.86598719]
[1735829528000,20.11696719,208.67,208.6,19.86598719]
[1735829528409,19.86598719,208.72,208.64,19.86598719]
[1735829528713,20.11696719,208.69,208.62,19.86598719]
[1735829528898,0.25098,208.69,208.63,19.86598719]
[1735829529626,19.86598719,208.72,208.65,19.86598719]
[1735829529827,19.86598719,208.7,208.63,19.86598719]
[1735829530007,0.25098,208.71,208.65,19.86598719]
[1735829530207,19.86598719,208.75,208.67,19.86598719]
[1735829530416,19.86598719,208.76,208.68,19.86598719]
[1735829530745,6.1685,208.79,208.62,20.71871927]
[1735829531023,19.86598719,208.69,208.62,19.86598719]
[1735829531398,0.12549,208.66,208.59,19.86598719]
[1735829531597,19.86598719,208.65,208.58,21.48968719]
[1735829531932,19.86598719,208.65,208.61,20.0]
[1735829532103,0.12549,208.64,208.61,20.0]
[1735829532302,0.12549,208.64,208.58,21.48968719]
[1735829532495,19.99147719,208.64,208.58,1.6237]
[1735829532692,19.86598719,208.63,208.56,19.86598719]
[1735829532997,19.86598719,208.63,208.55,19.86598719]
[1735829533208,19.86598719,208.63,208.56,19.86598719]
[1735829533525,0.12549,208.63,208.58,19.86598719]
[1735829533912,19.99147719,208.64,208.57,19.86598719]
[1735829534215,19.86598719,208.63,208.56,43.64287119]
[1735829534424,0.25098,208.59,208.53,19.86598719]
[1735829534605,20.11696719,208.59,208.52,1.63]
[1735829534801,0.12549,208.55,208.48,19.86598719]
[1735829535036,0.25098,208.53,208.47,19.86598719]
[1735829535513,20.11696719,208.52,208.45,19.86598719]
[1735829535712,19.86598719,208.5,208.43,19.86598719]
[1735829536046,0.37647,208.49,208.42,19.86598719]
[1735829536413,20.24245719,208.49,208.41,19.86598719]
[1735829536643,20.24245719,208.49,208.4,19.86598719]
[1735829536644,0.12549,208.46,208.4,19.86598719]
[1735829536939,0.25098,208.46,208.4,19.86598719]
[1735829537136,19.86598719,208.48,208.41,19.86598719]
[1735829537319,19.86598719,208.49,208.42,19.86598719]
[1735829537503,20.24245719,208.47,208.4,19.86598719]
[1735829537707,0.12549,208.47,208.41,23.776884]
[1735829537944,19.86598719,208.46,208.39,19.86598719]
[1735829538118,19.86598719,208.46,208.4,19.86598719]
[1735829538119,0.25098,208.46,208.4,19.86598719]
[1735829538305,0.12549,208.45,208.39,19.86598719]
[1735829538511,19.86598719,208.45,208.38,19.86598719]
[1735829538845,19.86598719,208.46,208.39,19.86598719]
[1735829539137,19.86598719,208.46,208.35,23.776884]
[1735829539138,0.12549,208.46,208.4,19.86598719]
[1735829539346,19.86598719,208.51,208.44,20.0]
[1735829539550,19.86598719,208.49,208.44,20.0]
[1735829539726,6.3018,208.55,208.41,19.86598719]
[1735829539727,20.11696719,208.48,208.41,19.86598719]
[1735829540047,0.25098,208.48,208.41,19.86598719]
[1735829540207,0.12549,208.46,208.4,19.86598719]
[1735829540411,19.99147719,208.46,208.39,19.86598719]
[1735829540606,19.99147719,208.46,208.41,19.86598719]
[1735829540607,0.12549,208.46,208.41,19.86598719]
[1735829540814,0.25098,208.47,208.4,43.64287119]
[1735829541209,19.86598719,208.5,208.42,43.64287119]
[1735829541424,19.86598719,208.51,208.44,19.86598719]
[1735829541622,19.86598719,208.5,208.43,19.86598719]
[1735829541839,19.99147719,208.49,208.43,20.0]
[1735829542214,19.86598719,208.52,208.44,43.64287119]
[1735829542420,19.86598719,208.54,208.47,39.86598719]
[1735829542733,19.86598719,208.56,208.49,19.86598719]
[1735829543114,19.86598719,208.56,208.5,23.776884]
[1735829543307,19.86598719,208.57,208.5,19.86598719]
[1735829543528,19.86598719,208.56,208.5,23.776884]
[1735829543741,19.86598719,208.53,208.48,20.0]
[1735829544042,19.86598719,208.51,208.44,21.38048719]
[1735829544243,0.12549,208.48,208.42,19.86598719]
[1735829544542,0.12549,208.53,208.42,19.86598719]
[1735829544730,19.86598719,208.49,208.43,23.776884]
[1735829545533,0.12549,208.49,208.43,19.86598719]
[1735829545736,19.86598719,208.51,208.43,19.86598719]
[1735829545909,19.86598719,208.53,208.47,23.776884]
[1735829546114,19.86598719,208.55,208.48,19.86598719]
[1735829546317,19.86598719,208.56,208.49,43.64287119]
[1735829546732,19.99147719,208.55,208.49,23.776884]
[1735829546924,19.86598719,208.55,208.47,19.86598719]
[1735829547122,19.86598719,208.53,208.46,19.86598719]
[1735829547339,19.86598719,208.55,208.48,19.86598719]
[1735829547538,0.25098,208.59,208.44,23.776884]
[1735829547539,19.86598719,208.56,208.49,19.86598719]
[1735829547712,19.86598719,208.55,208.48,19.86598719]
[1735829547914,19.86598719,208.55,208.48,23.776884]
[1735829548110,0.12549,208.49,208.42,19.86598719]
[1735829548315,0.12549,208.49,208.35,25.858644]
[1735829548551,0.12549,208.49,208.35,26.57828392]
[1735829548724,0.25098,208.47,208.41,19.86598719]
[1735829549048,19.86598719,208.46,208.39,23.776884]
[1735829549218,19.86598719,208.46,208.38,21.51888719]
[1735829549410,0.12549,208.46,208.4,19.86598719]
[1735829549815,0.12549,208.46,208.39,43.64287119]
[1735829550017,0.12549,208.46,208.4,19.86598719]
[1735829550211,19.86598719,208.5,208.42,19.86598719]
[1735829550527,19.86598719,208.49,208.42,20.0]
[1735829550722,0.12549,208.49,208.43,19.86598719]
[1735829551043,19.86598719,208.53,208.44,23.776884]
[1735829551250,6.3708,208.61,208.47,39.86598719]
[1735829551465,20.11696719,208.52,208.47,20.0]
[1735829551752,19.99147719,208.52,208.45,19.86598719]
[1735829551922,19.99147719,208.52,208.4,19.86598719]
[1735829551923,19.86598719,208.54,208.47,19.86598719]
[1735829552438,19.86598719,208.56,208.48,19.86598719]
[1735829552644,6.3708,208.61,208.48,19.86598719]
[1735829552645,19.86598719,208.55,208.48,19.86598719]
[1735829552843,19.99147719,208.52,208.44,19.86598719]
[1735829553033,0.25098,208.5,208.44,19.86598719]
[1735829553230,0.12549,208.51,208.45,19.86598719]
[1735829553429,0.25098,208.59,208.47,19.86598719]
[1735829553430,19.86598719,208.54,208.47,19.86598719]
[1735829553656,19.86598719,208.52,208.44,19.86598719]
[1735829553837,0.12549,208.51,208.45,19.86598719]
[1735829554452,0.25098,208.51,208.45,19.86598719]
[1735829554647,0.25098,208.51,208.44,19.86598719]
[1735829555024,0.25098,208.51,208.45,19.86598719]
[1735829556060,20.11696719,208.5,208.43,19.86598719]
[1735829556248,19.86598719,208.49,208.42,39.86598719]
[1735829556755,19.86598719,208.53,208.46,19.86598719]
[1735829556921,19.86598719,208.55,208.48,19.86598719]
[1735829557121,19.86598719,208.58,208.51,19.86598719]
[1735829557350,11.9829,208.64,208.44,23.776884]
[1735829557351,6.0262,208.66,208.49,20.0]
[1735829557555,6.0262,208.66,208.52,23.776884]
[1735829557938,6.0262,208.66,208.55,20.0]
[1735829558346,19.86598719,208.63,208.55,39.86598719]
[1735829558541,19.86598719,208.61,208.55,20.0]
[1735829558746,19.86598719,208.59,208.52,19.86598719]
[1735829559032,0.12549,208.54,208.48,19.86598719]
[1735829559235,19.86598719,208.56,208.49,19.86598719]
[1735829559550,11.9823,208.64,208.5,20.0]
[1735829559551,0.12549,208.54,208.5,20.0]
[1735829560738,19.99147719,208.55,208.5,20.0]
[1735829561150,19.86598719,208.56,208.49,19.86598719]
[1735829561353,19.86598719,208.59,208.5,19.86598719]
[1735829561657,0.12549,208.56,208.49,19.86598719]
[1735829562029,0.12549,208.56,208.5,19.86598719]
[1735829562234,0.12549,208.57,208.5,19.86598719]
[1735829562665,0.12549,208.57,208.44,20.71927985]
[1735829562666,0.12549,208.55,208.48,19.86598719]
[1735829562961,0.25098,208.53,208.47,19.86598719]
[1735829563167,0.25098,208.53,208.46,19.86598719]
[1735829563864,20.11696719,208.52,208.45,19.86598719]
[1735829564034,20.11696719,208.5,208.42,19.86598719]
[1735829564232,20.11696719,208.48,208.41,21.38518719]
[1735829564576,0.12549,208.48,208.43,19.86598719]
[1735829564862,19.86598719,208.53,208.46,19.86598719]
[1735829565070,19.86598719,208.53,208.45,39.86598719]
[1735829565270,0.12549,208.5,208.45,20.0]
[1735829565465,20.24245719,208.5,208.43,19.86598719]
[1735829565658,0.12549,208.48,208.42,19.86598719]
[1735829565970,0.12549,208.48,208.43,19.86598719]
[1735829566343,0.25098,208.49,208.43,19.86598719]
[1735829566664,0.25098,208.49,208.44,19.86598719]
[1735829566969,6.4616,208.54,208.46,19.86598719]
[1735829566970,19.86598719,208.53,208.46,19.86598719]
[1735829567135,6.4616,208.54,208.48,19.86598719]
[1735829567336,26.32758719,208.54,208.47,19.86598719]
[1735829567645,0.12549,208.53,208.47,19.86598719]
[1735829567960,0.25098,208.53,208.46,19.86598719]
[1735829568159,26.32758719,208.54,208.46,19.86598719]
[1735829568658,0.37647,208.53,208.46,19.86598719]
[1735829569053,19.86598719,208.52,208.45,39.86598719]
[1735829569474,0.12549,208.48,208.42,19.86598719]
[1735829569642,0.25098,208.53,208.45,19.86598719]
[1735829569643,19.86598719,208.53,208.45,19.86598719]
[1735829570339,20.24245719,208.52,208.44,19.86598719]
[1735829570571,20.24245719,208.5,208.43,39.86598719]
[1735829570874,20.24245719,208.5,208.43,20.0]
[1735829571075,0.37647,208.48,208.41,21.38518719]
[1735829571776,0.37647,208.48,208.41,19.86598719]
[1735829571777,20.24245719,208.48,208.41,19.86598719]
[1735829571958,0.25098,208.46,208.39,19.86598719]
[1735829572307,0.25098,208.46,208.4,19.86598719]
[1735829572872,0.25098,208.47,208.41,19.86598719]
[1735829573380,19.86598719,208.51,208.44,19.86598719]
[1735829573676,19.86598719,208.5,208.43,19.86598719]
[1735829573847,19.86598719,208.5,208.42,19.86598719]
[1735829574052,0.25098,208.49,208.42,19.86598719]
[1735829574547,19.86598719,208.46,208.39,39.86598719]
[1735829574860,0.25098,208.45,208.4,19.86598719]
[1735829575583,0.37647,208.46,208.41,19.86598719]
[1735829575875,20.24245719,208.46,208.38,19.86598719]
[1735829576280,20.24245719,208.46,208.39,19.86598719]
[1735829576445,0.37647,208.46,208.39,19.86598719]
[1735829576981,0.37647,208.44,208.38,19.86598719]
[1735829578303,20.24245719,208.44,208.37,19.86598719]
[1735829578679,0.37647,208.44,208.38,19.86598719]
[1735829579103,19.86598719,208.52,208.43,19.86598719]
[1735829579287,19.86598719,208.53,208.45,19.86598719]
[1735829579484,19.86598719,208.51,208.44,19.86598719]
[1735829579811,20.24245719,208.5,208.43,19.86598719]
[1735829579977,19.86598719,208.5,208.43,19.86598719]
[1735829580171,19.86598719,208.5,208.42,19.86598719]
[1735829580376,0.37647,208.48,208.42,19.86598719]
[1735829580685,20.24245719,208.48,208.41,19.86598719]
[1735829580888,0.37647,208.48,208.41,19.86598719]
[1735829581183,0.25098,208.48,208.43,19.86598719]
[1735829581395,6.4616,208.54,208.47,19.86598719]
[1735829581603,19.86598719,208.57,208.49,19.86598719]
[1735829581891,26.28448719,208.59,208.52,19.86598719]
[1735829582106,19.86598719,208.58,208.51,19.86598719]
[1735829582404,26.28448719,208.59,208.52,19.86598719]
[1735829582614,19.86598719,208.62,208.54,19.86598719]
[1735829582908,20.24245719,208.61,208.53,19.86598719]
[1735829583503,19.86598719,208.61,208.53,19.86598719]
[1735829583809,19.86598719,208.6,208.53,19.86598719]
[1735829584111,19.86598719,208.6,208.52,19.86598719]
[1735829584610,0.25098,208.57,208.51,19.86598719]
[1735829584784,20.11696719,208.55,208.48,19.86598719]
[1735829584983,20.11696719,208.55,208.45,1.5044]
[1735829584984,19.86598719,208.52,208.45,19.86598719]
[1735829585184,19.86598719,208.52,208.44,19.86598719]
[1735829585393,19.86598719,208.51,208.44,19.86598719]
[1735829585592,19.86598719,208.52,208.44,19.86598719]
[1735829586104,19.86598719,208.52,208.39,1.5602]
[1735829586105,19.86598719,208.5,208.43,19.86598719]
[1735829586305,19.86598719,208.48,208.41,19.86598719]
[1735829586614,19.86598719,208.48,208.4,19.86598719]
[1735829586906,19.86598719,208.47,208.4,19.86598719]
[1735829587110,19.86598719,208.46,208.39,19.86598719]
[1735829587291,19.86598719,208.51,208.44,19.86598719]
[1735829587496,19.86598719,208.52,208.44,19.86598719]
[1735829587689,19.86598719,208.52,208.45,19.86598719]
[1735829587908,19.86598719,208.53,208.46,19.86598719]
[1735829588218,19.86598719,208.54,208.47,19.86598719]
[1735829588384,19.86598719,208.56,208.49,19.86598719]
[1735829588716,19.86598719,208.56,208.48,19.86598719]
[1735829589313,0.25098,208.55,208.48,19.86598719]
[1735829589520,0.25098,208.53,208.47,19.86598719]
[1735829589812,26.00258719,208.57,208.49,19.86598719]
[1735829590479,0.25098,208.56,208.49,19.86598719]
[1735829590680,20.11696719,208.56,208.49,19.86598719]
[1735829591112,19.86598719,208.55,208.48,19.86598719]
[1735829591514,19.86598719,208.53,208.46,19.86598719]
[1735829592107,19.86598719,208.54,208.46,19.86598719]
[1735829592312,19.86598719,208.53,208.45,19.86598719]
[1735829592822,19.86598719,208.52,208.44,39.86598719]
[1735829593127,19.86598719,208.5,208.42,19.86598719]
[1735829593294,19.86598719,208.51,208.44,19.86598719]
[1735829593494,20.11696719,208.5,208.43,19.86598719]
[1735829593718,19.86598719,208.53,208.45,19.86598719]
[1735829593893,19.86598719,208.55,208.47,19.86598719]
[1735829594098,19.86598719,208.53,208.46,19.86598719]
[1735829594313,19.86598719,208.55,208.48,19.86598719]
[1735829594621,19.86598719,208.54,208.46,19.86598719]
[1735829594989,19.86598719,208.5,208.42,19.86598719]
[1735829595230,19.86598719,208.49,208.42,19.86598719]
[1735829595518,19.86598719,208.49,208.41,19.86598719]
[1735829595720,19.86598719,208.47,208.39,19.86598719]
[1735829595898,19.86598719,208.45,208.38,19.86598719]
[1735829597224,0.25098,208.45,208.39,19.86598719]
[1735829597396,19.86598719,208.48,208.4,19.86598719]
[1735829597601,19.86598719,208.48,208.41,19.86598719]
[1735829598005,19.86598719,208.5,208.42,19.86598719]
[1735829598296,25.93912684,208.57,208.45,19.86598719]
[1735829598297,19.86598719,208.52,208.45,19.86598719]
[1735829598501,27.26725061,208.56,208.49,19.86598719]
[1735829598704,7.40126342,208.56,208.49,19.86598719]
[1735829598906,7.40126342,208.59,208.53,19.86598719]
[1735829599113,7.40126342,208.59,208.55,19.86598719]
[1735829599427,7.40126342,208.59,208.57,19.86598719]
[1735829599816,27.26725061,208.64,208.57,19.86598719]
[1735829600412,19.86598719,208.65,208.57,19.86598719]
[1735829600930,0.25098,208.64,208.57,19.86598719]
[1735829601127,25.88258719,208.67,208.6,19.86598719]
[1735829601314,19.86598719,208.69,208.61,19.86598719]
[1735829601525,19.86598719,208.71,208.64,19.86598719]
[1735829601700,25.97628719,208.72,208.65,19.86598719]
[1735829601900,56.87230429,208.73,208.66,19.86598719]
[1735829602447,7.40126342,208.77,208.73,20.0]
[1735829602656,7.40126342,208.77,208.76,19.86598719]
[1735829603740,19.86598719,208.86,208.76,19.86598719]
[1735829603944,19.86598719,208.89,208.81,19.86598719]
[1735829604449,25.91938719,208.9,208.83,19.86598719]
[1735829604618,19.86598719,208.89,208.82,19.86598719]
[1735829604934,0.12549,208.87,208.8,19.86598719]
[1735829605136,19.99147719,208.87,208.8,19.86598719]
[1735829605442,19.99147719,208.83,208.76,19.86598719]
[1735829605617,0.25098,208.81,208.74,19.86598719]
[1735829605819,0.25098,208.81,208.72,1.6506]
[1735829605820,20.11696719,208.81,208.73,19.86598719]
[1735829606024,0.25098,208.79,208.73,19.86598719]
[1735829606336,0.25098,208.79,208.74,19.86598719]
[1735829606528,0.25098,208.8,208.74,19.86598719]
[1735829607127,20.24245719,208.81,208.74,19.86598719]
[1735829607539,0.37647,208.81,208.74,19.86598719]
[1735829607739,0.37647,208.81,208.75,19.86598719]
[1735829608040,19.86598719,208.8,208.72,19.86598719]
[1735829608342,20.11696719,208.79,208.72,19.86598719]
[1735829608548,11.9694,208.87,208.75,19.86598719]
[1735829608724,19.86598719,208.82,208.75,19.86598719]
[1735829609046,20.11696719,208.81,208.74,19.86598719]
[1735829609244,0.25098,208.81,208.75,19.86598719]
[1735829609422,0.25098,208.81,208.7,19.86598719]
[1735829609423,39.86598719,208.83,208.76,19.86598719]
[1735829609624,20.11696719,208.82,208.75,19.86598719]
[1735829610427,0.25098,208.8,208.74,19.86598719]
[1735829610836,19.86598719,208.79,208.72,19.86598719]
[1735829611521,19.86598719,208.8,208.73,19.86598719]
[1735829611851,0.25098,208.79,208.73,19.86598719]
[1735829612653,0.25098,208.8,208.73,19.86598719]
[1735829612854,19.86598719,208.83,208.76,19.86598719]
[1735829613027,19.86598719,208.86,208.79,19.86598719]
[1735829613231,19.86598719,208.88,208.81,19.86598719]
[1735829613570,0.37647,208.87,208.81,19.86598719]
[1735829614349,0.37647,208.87,208.8,19.86598719]
[1735829614536,19.86598719,208.86,208.79,19.86598719]
[1735829614744,19.86598719,208.84,208.77,19.86598719]
[1735829615159,0.25098,208.85,208.79,16.86598719]
[1735829615637,20.11696719,208.85,208.78,19.86598719]
[1735829615843,0.12549,208.84,208.79,19.86598719]
[1735829616050,0.12549,208.85,208.8,19.86598719]
[1735829616539,19.86598719,208.87,208.8,19.86598719]
[1735829616737,0.12549,208.88,208.8,19.86598719]
[1735829616941,6.0534,208.9,208.83,19.86598719]
[1735829617455,19.86598719,208.93,208.86,19.86598719]
[1735829617667,25.87588719,208.95,208.87,19.86598719]
[1735829617965,0.37647,208.93,208.87,19.86598719]
[1735829618126,19.86598719,208.94,208.87,19.86598719]
[1735829618331,25.87588719,208.95,208.87,19.86598719]
[1735829618672,0.25098,208.93,208.87,19.86598719]
[1735829618842,0.12549,208.93,208.88,19.86598719]
[1735829619353,19.86598719,208.94,208.87,19.86598719]
[1735829619546,0.25098,208.93,208.87,19.86598719]
[1735829619861,20.24245719,208.93,208.86,19.86598719]
[1735829620034,20.24245719,208.93,208.85,19.86598719]
[1735829621075,18.3547,209.01,208.92,19.86598719]
[1735829621364,33.91859999,209.05,208.97,19.86598719]
[1735829621365,31.82488719,209.05,208.97,19.86598719]
[1735829621654,31.82488719,209.05,208.96,19.86598719]
[1735829621655,20.0,209.01,208.96,19.86598719]
[1735829621855,20.0,209.01,208.91,23.776884]
[1735829621856,20.0,209.01,208.98,19.86598719]
[1735829622036,0.37647,209.04,208.98,19.86598719]
[1735829622242,19.86598719,209.04,208.97,19.86598719]
[1735829622448,0.12549,209.0,208.95,19.86598719]
[1735829622857,20.0,209.0,208.94,19.86598719]
[1735829623171,0.12549,208.99,208.93,19.86598719]
[1735829623550,20.24245719,208.99,208.92,19.86598719]
[1735829623765,0.25098,208.94,208.88,19.86598719]
[1735829624071,0.12549,208.98,208.83,19.86598719]
[1735829624072,19.86598719,208.9,208.83,19.86598719]
[1735829624271,0.25098,208.89,208.83,19.86598719]
[1735829624474,31.9658,208.93,208.8,7.6314]
[1735829625046,0.37647,208.92,208.8,7.6314]
[1735829625376,20.0,208.93,208.81,23.776884]
[1735829625546,19.86598719,208.97,208.9,19.86598719]
[1735829625747,6.583,209.02,208.95,19.86598719]
[1735829626060,6.583,209.02,208.96,19.86598719]
[1735829626265,0.37647,209.01,208.95,19.86598719]
[1735829626463,18.5436,209.02,208.95,19.86598719]
[1735829626660,38.40958719,209.02,208.95,19.86598719]
[1735829626956,0.12549,209.01,208.95,19.86598719]
[1735829627280,0.37647,209.01,208.95,19.86598719]
[1735829627659,0.37647,209.01,208.94,19.86598719]
[1735829627660,20.24245719,209.01,208.94,19.86598719]
[1735829627863,20.24245719,209.01,208.93,19.86598719]
[1735829628277,39.99147719,208.99,208.92,19.86598719]
[1735829628458,0.25098,208.97,208.91,19.86598719]
[1735829628664,0.12549,208.95,208.89,19.86598719]